bitfinex/quotes_BTCUSD_20241023
["timestamp","ask_amount","ask_price","bid_price","bid_amount"]
[1729709654813,0.64046381,65900.0,65899.0,0.146037]
[1729709655337,0.63846381,65900.0,65899.0,0.146037]
[1729709656689,0.93598544,65900.0,65899.0,0.002646]
[1729709656908,1.0621599,65900.0,65899.0,0.002646]
[1729709657390,1.2139049,65900.0,65899.0,0.002646]
[1729709657612,1.0621599,65900.0,65899.0,0.001646]
[1729709657839,1.01478544,65900.0,65899.0,0.002646]
[1729709658286,1.01278544,65900.0,65899.0,0.002646]
[1729709658501,1.01478544,65900.0,65899.0,0.002646]
[1729709658720,1.01478544,65900.0,65899.0,0.001646]
[1729709658944,1.01478544,65900.0,65899.0,0.002646]
[1729709659861,1.16653044,65900.0,65899.0,0.002646]
[1729709660085,1.01478544,65900.0,65899.0,0.002646]
[1729709660316,0.83575658,65900.0,65899.0,0.002646]
[1729709660810,0.83575658,65900.0,65899.0,0.001646]
[1729709661047,0.83575658,65900.0,65899.0,0.002646]
[1729709661285,0.88513113,65900.0,65899.0,0.002646]
[1729709661979,0.83575658,65900.0,65899.0,0.002646]
[1729709662907,0.88313045,65900.0,65899.0,0.002646]
[1729709663359,0.83575658,65900.0,65899.0,0.154393]
[1729709663839,0.83575658,65900.0,65899.0,0.002646]
[1729709664050,0.83575658,65900.0,65899.0,0.154393]
[1729709664519,0.83657958,65900.0,65899.0,0.154393]
[1729709664742,0.88395372,65900.0,65899.0,0.154393]
[1729709666165,0.83657958,65900.0,65899.0,0.154393]
[1729709666419,0.75777958,65900.0,65899.0,0.154393]
[1729709666891,0.75777958,65900.0,65899.0,0.002646]
[1729709667127,0.75777958,65900.0,65899.0,0.154393]
[1729709667128,0.80515384,65900.0,65899.0,0.154393]
[1729709667343,0.75777958,65900.0,65899.0,0.154393]
[1729709667785,0.80692533,65900.0,65899.0,0.154393]
[1729709668001,0.75955003,65900.0,65899.0,0.154393]
[1729709668512,0.75955003,65900.0,65884.0,0.151781]
[1729709668513,0.01,65885.0,65884.0,0.151781]
[1729709668732,0.01,65880.0,65869.0,0.151816]
[1729709669009,0.01,65877.0,65867.0,0.0822]
[1729709669242,0.01,65872.0,65871.0,0.151811]
[1729709669509,0.023,65869.0,65864.0,0.001718]
[1729709669755,0.023,65869.0,65868.0,0.151818]
[1729709669966,0.30291245,65868.0,65866.0,0.303646]
[1729709670205,0.30291245,65868.0,65867.0,0.151821]
[1729709670456,0.01,65866.0,65864.0,0.001718]
[1729709670687,0.01,65866.0,65865.0,0.151824]
[1729709670917,0.16050381,65866.0,65865.0,0.151824]
[1729709671153,0.46341626,65866.0,65865.0,0.151824]
[1729709673224,0.46341626,65866.0,65864.0,0.154545]
[1729709673225,0.51225789,65866.0,65864.0,0.154545]
[1729709673461,0.15142631,65865.0,65864.0,0.154545]
[1729709673687,0.15142631,65865.0,65864.0,0.001718]
[1729709673913,0.48733876,65865.0,65864.0,0.001718]
[1729709674134,0.79074507,65865.0,65864.0,0.001718]
[1729709674373,1.05934507,65865.0,65864.0,0.001718]
[1729709674640,1.05934507,65865.0,65864.0,0.002718]
[1729709674872,1.05934507,65865.0,65864.0,0.001718]
[1729709675103,1.23663416,65865.0,65864.0,0.002718]
[1729709676231,1.23463416,65865.0,65864.0,0.001718]
[1729709676460,1.23663416,65865.0,65864.0,0.001718]
[1729709676694,1.23463416,65865.0,65864.0,0.002718]
[1729709678268,1.08280916,65865.0,65864.0,0.002718]
[1729709678495,1.15963416,65865.0,65864.0,0.002718]
[1729709678957,1.15763416,65865.0,65864.0,0.002718]
[1729709679172,1.00580916,65865.0,65864.0,0.002718]
[1729709679389,1.15763416,65865.0,65864.0,0.002718]
[1729709680037,1.00580916,65865.0,65864.0,0.002718]
[1729709680266,0.48641626,65865.0,65864.0,0.154546]
[1729709680493,0.46341626,65865.0,65864.0,0.154546]
[1729709680985,0.46341626,65865.0,65864.0,0.153546]
[1729709681212,0.45341626,65865.0,65864.0,0.154546]
[1729709681446,0.46341626,65865.0,65864.0,0.153546]
[1729709681695,0.49984019,65865.0,65864.0,0.153546]
[1729709681910,0.46341626,65865.0,65864.0,0.153546]
[1729709682811,0.46341626,65865.0,65864.0,0.154546]
[1729709683030,0.46341626,65865.0,65864.0,0.153546]
[1729709683546,0.46341626,65865.0,65864.0,0.154546]
[1729709683639,0.46341626,65865.0,65864.0,0.153546]
[1729709683857,0.46341626,65865.0,65864.0,0.154546]
[1729709683858,0.50984019,65865.0,65864.0,0.154546]
[1729709685003,0.30291245,65865.0,65864.0,0.154546]
[1729709686161,0.30291245,65865.0,65864.0,0.153546]
[1729709686397,0.30291245,65865.0,65864.0,0.233946]
[1729709687056,0.30291245,65865.0,65864.0,0.234946]
[1729709687274,0.30291245,65865.0,65864.0,0.233946]
[1729709687734,0.30291245,65865.0,65864.0,0.234946]
[1729709691817,0.30291245,65865.0,65864.0,0.23886284]
[1729709693370,0.30283245,65865.0,65864.0,0.23886284]
[1729709693855,0.30375495,65865.0,65864.0,0.23886284]
[1729709695001,0.30283245,65865.0,65864.0,0.23886284]
[1729709695221,0.30283245,65865.0,65864.0,0.24386284]
[1729709695447,0.15100745,65865.0,65864.0,0.34386284]
[1729709695706,4.5e-07,65865.0,65864.0,0.69236665]
[1729709696136,4.5e-07,65865.0,65864.0,0.69711559]
[1729709696375,4.5e-07,65865.0,65864.0,0.69611559]
[1729709696799,4.5e-07,65865.0,65864.0,0.69711559]
[1729709697041,0.000823,65868.0,65864.0,0.69711559]
[1729709697042,4.5e-07,65868.0,65867.0,0.156821]
[1729709697262,4.5e-07,65868.0,65867.0,0.69490967]
[1729709697488,4.5e-07,65868.0,65867.0,0.69187375]
[1729709698229,4.5e-07,65868.0,65867.0,0.86416284]
[1729709698462,4.5e-07,65868.0,65867.0,0.86516284]
[1729709698696,4.5e-07,65868.0,65867.0,0.88212584]
[1729709698923,4.5e-07,65868.0,65867.0,0.87212584]
[1729709699145,4.5e-07,65868.0,65867.0,0.88016284]
[1729709699369,0.22877188,65884.0,65876.0,0.5233]
[1729709699631,0.22877188,65884.0,65876.0,1.03313093]
[1729709700109,0.22877188,65884.0,65883.0,0.251784]
[1729709700367,0.22877188,65884.0,65883.0,0.332684]
[1729709700815,0.0009225,65891.0,65890.0,0.151768]
[1729709701256,0.4562225,65891.0,65890.0,0.151768]
[1729709701469,0.4553,65891.0,65890.0,0.32905709]
[1729709702414,0.4553,65891.0,65890.0,0.70055709]
[1729709703101,0.4553,65891.0,65890.0,0.70155709]
[1729709703329,0.4553,65891.0,65890.0,0.70055709]
[1729709703789,0.4553,65891.0,65890.0,0.70155709]
[1729709704777,0.000823,65900.0,65899.0,0.151747]
[1729709705014,0.000823,65900.0,65899.0,0.331247]
[1729709705480,0.000823,65900.0,65899.0,0.524747]
[1729709705944,0.000823,65900.0,65899.0,0.87932518]
[1729709706646,0.000823,65900.0,65899.0,0.88032518]
[1729709706940,0.000823,65900.0,65899.0,0.88428356]
[1729709707845,1e-06,65900.0,65899.0,1.03478737]
[1729709708549,1e-06,65900.0,65899.0,1.03978737]
[1729709711482,1e-06,65900.0,65899.0,1.04978737]
[1729709711952,0.22877188,65910.0,65909.0,0.331524]
[1729709712199,0.000823,65922.0,65909.0,0.331524]
[1729709712200,0.000823,65922.0,65916.0,0.331508]
[1729709712919,0.000823,65922.0,65921.0,0.251696]
[1729709713898,0.000823,65922.0,65921.0,0.330996]
[1729709714128,0.0009225,65930.0,65929.0,0.151678]
[1729709714129,0.22877188,65930.0,65929.0,0.151678]
[1729709714349,0.22877188,65930.0,65929.0,0.251678]
[1729709714584,0.000823,65931.0,65930.0,0.251676]
[1729709714812,0.000823,65931.0,65930.0,0.330876]
[1729709715294,0.000823,65931.0,65930.0,0.50816509]
[1729709715974,0.000823,65931.0,65930.0,0.50916509]
[1729709718848,0.000823,65931.0,65930.0,0.331876]
[1729709719570,0.000823,65931.0,65930.0,0.50916509]
[1729709719853,0.000823,65931.0,65930.0,0.42996509]
[1729709720066,0.000823,65931.0,65930.0,0.43396222]
[1729709722990,0.000859,65934.0,65930.0,0.43396222]
[1729709722991,1e-06,65934.0,65930.0,0.23580094]
[1729709723213,0.22959188,65947.0,65946.0,0.151639]
[1729709723214,0.00082,65947.0,65946.0,0.151639]
[1729709724135,0.00082,65947.0,65946.0,0.232239]
[1729709724360,0.0126,65954.0,65948.0,0.42892309]
[1729709724361,1e-06,65949.0,65948.0,0.42892309]
[1729709724595,0.0126,65954.0,65951.0,0.1]
[1729709724822,0.22877188,65963.0,65953.0,0.1]
[1729709725059,0.22877188,65963.0,65956.0,0.251616]
[1729709725293,0.22877188,65963.0,65956.0,0.29806684]
[1729709725520,0.22877188,65963.0,65956.0,0.47535593]
[1729709726650,0.22877188,65963.0,65956.0,0.29806684]
[1729709726872,0.22877188,65963.0,65956.0,0.42890509]
[1729709727095,0.22877188,65963.0,65956.0,0.43288771]
[1729709727534,0.22877188,65963.0,65956.0,0.43388771]
[1729709727782,0.22877188,65963.0,65956.0,0.43288771]
[1729709728152,0.22877188,65963.0,65956.0,0.47576688]
[1729709728570,0.22877188,65963.0,65956.0,0.47676688]
[1729709728753,0.22877188,65963.0,65956.0,0.47576688]
[1729709729170,0.22877188,65963.0,65956.0,0.47676688]
[1729709729595,0.22877188,65963.0,65956.0,0.43388771]
[1729709731527,0.22877188,65963.0,65956.0,0.43288771]
[1729709731740,0.22877188,65963.0,65956.0,0.43388771]
[1729709733102,0.0009225,65969.0,65956.0,0.43388771]
[1729709733103,0.00082,65957.0,65956.0,0.6111768]
[1729709733320,0.00082,65957.0,65956.0,0.6159191]
[1729709733545,0.00082,65957.0,65956.0,0.6149191]
[1729709733756,0.00082,65957.0,65956.0,0.6159191]
[1729709733982,0.00082,65957.0,65956.0,0.95232291]
[1729709734240,0.00082,65957.0,65956.0,0.99520208]
[1729709734444,0.0009225,65969.0,65958.0,0.151611]
[1729709734684,0.0009225,65969.0,65958.0,0.2563533]
[1729709734892,0.0009225,65969.0,65958.0,0.29923247]
[1729709735303,0.0009225,65969.0,65958.0,0.29449017]
[1729709735516,0.0009225,65969.0,65958.0,0.25635321]
[1729709735967,0.0009225,65969.0,65958.0,0.29923238]
[1729709736394,0.0009225,65969.0,65958.0,0.25635321]
[1729709736631,0.0009225,65969.0,65958.0,0.30023238]
[1729709736848,0.0009225,65969.0,65958.0,0.29923238]
[1729709737061,0.0009225,65969.0,65958.0,0.30023238]
[1729709737942,0.0009225,65969.0,65958.0,0.25735321]
[1729709738387,0.0009225,65969.0,65958.0,0.4346423]
[1729709738835,0.0009225,65969.0,65965.0,0.251595]
[1729709739072,0.0009225,65969.0,65965.0,0.42888409]
[1729709739993,0.000859,65978.0,65965.0,0.42888409]
[1729709739994,0.005,65994.0,65977.0,0.251567]
[1729709740224,0.0005,65999.0,65977.0,0.251567]
[1729709740225,1e-06,65997.0,65996.0,0.256524]
[1729709740444,1e-06,65997.0,65996.0,0.30338181]
[1729709741092,1e-06,65997.0,65996.0,0.65795999]
[1729709741312,0.22877188,66015.0,65996.0,0.65795999]
[1729709741313,0.22877188,66014.0,66011.0,0.256489]
[1729709741745,0.22877188,66014.0,66011.0,0.30536696]
[1729709742176,0.22877188,66014.0,66011.0,0.48265605]
[1729709743066,0.22877188,66021.0,66011.0,0.48167086]
[1729709743313,0.22877188,66036.0,66008.0,0.302989]
[1729709743314,0.20962988,66036.0,66035.0,0.151434]
[1729709743538,0.20962988,66036.0,66035.0,0.32872309]
[1729709745079,0.005,66038.0,66037.0,0.15143]
[1729709745313,0.005,66038.0,66034.0,0.302873]
[1729709745314,0.005,66034.0,66018.0,0.00499933]
[1729709745542,0.1894,66032.0,66026.0,0.151454]
[1729709745764,0.1894,66032.0,66020.0,0.1]
[1729709745765,0.005,66030.0,66020.0,0.1]
[1729709745984,0.55372469,66029.0,66020.0,0.1]
[1729709746218,0.023,66027.0,66020.0,0.1]
[1729709746435,0.15050381,66026.0,66020.0,0.1]
[1729709746848,0.15050381,66026.0,66019.0,0.302941]
[1729709747064,0.15050381,66026.0,66020.0,0.101]
[1729709747301,0.15050381,66026.0,66021.0,0.151466]
[1729709747537,0.15050381,66026.0,66020.0,0.001]
[1729709747538,0.22877188,66022.0,66020.0,0.001]
[1729709747760,0.17350381,66021.0,66020.0,0.001]
[1729709747971,0.17550381,66021.0,66020.0,0.001]
[1729709748188,0.17350381,66021.0,66020.0,0.001]
[1729709748421,0.32988981,66021.0,66020.0,0.001]
[1729709748635,0.17842381,66021.0,66020.0,0.001]
[1729709748840,0.17842381,66021.0,66000.0,0.00999933]
[1729709748841,0.023,66020.0,66009.0,0.1]
[1729709749051,0.023,66018.0,66010.0,0.1]
[1729709749255,0.023,66016.0,66012.0,0.1]
[1729709749490,0.15050381,66015.0,66012.0,0.1]
[1729709749735,0.15050381,66015.0,66014.0,0.151483]
[1729709749944,0.15050381,66015.0,66012.0,0.1]
[1729709750176,0.17728909,66014.0,66013.0,0.151485]
[1729709750384,0.40860033,66014.0,66013.0,0.151485]
[1729709750838,0.037,66022.0,66013.0,0.151485]
[1729709750839,0.25809652,66018.0,66017.0,0.151476]
[1729709751049,0.22877188,66018.0,66017.0,0.151476]
[1729709751704,0.37927569,66018.0,66014.0,0.151481]
[1729709751915,0.17350381,66017.0,66011.0,0.1]
[1729709752125,0.17350381,66017.0,66014.0,0.152481]
[1729709752334,0.17350381,66017.0,66013.0,0.1]
[1729709752554,0.17350381,66017.0,66015.0,0.15148]
[1729709752765,0.17350381,66017.0,66013.0,0.1]
[1729709752766,0.17350381,66017.0,66014.0,0.302961]
[1729709752973,0.17350381,66017.0,66015.0,0.15148]
[1729709753616,0.17350381,66017.0,66014.0,0.302966]
[1729709753826,0.17350381,66017.0,66014.0,0.303966]
[1729709754058,0.17350381,66017.0,66014.0,0.455447]
[1729709754267,0.17350381,66017.0,66014.0,0.001]
[1729709754475,0.22877188,66030.0,66016.0,0.005]
[1729709754696,0.22877188,66015.0,66014.0,0.152483]
[1729709754911,0.22877188,66022.0,66021.0,0.151466]
[1729709755968,0.005,66023.0,66022.0,0.151464]
[1729709756174,0.15050381,66029.0,66028.0,0.15145]
[1729709756385,0.22877188,66030.0,66029.0,0.151448]
[1729709756595,0.37927569,66030.0,66029.0,0.151448]
[1729709756806,0.005,66031.0,66030.0,0.151446]
[1729709757034,0.005,66035.0,66031.0,0.151444]
[1729709757035,0.005,66032.0,66031.0,0.151444]
[1729709757276,0.005,66033.0,66032.0,0.151441]
[1729709757489,0.15050381,66033.0,66032.0,0.151441]
[1729709757928,0.15550381,66033.0,66032.0,0.151441]
[1729709758815,0.15550381,66033.0,66029.0,0.302896]
[1729709758816,0.005,66032.0,66029.0,0.001]
[1729709759031,0.15550381,66032.0,66031.0,0.151444]
[1729709759258,0.15550381,66032.0,66030.0,0.151445]
[1729709759474,0.005,66031.0,66019.0,0.302943]
[1729709759693,0.15050381,66030.0,66029.0,0.151448]
[1729709759908,0.15050381,66030.0,66029.0,0.152448]
[1729709760808,0.000821,66036.0,66029.0,0.001]
[1729709761026,0.000821,66036.0,66035.0,0.151434]
[1729709762653,0.000821,66036.0,66035.0,0.152434]
[1729709763096,0.000781,66036.0,66035.0,0.152434]
[1729709768592,0.000781,66036.0,66035.0,0.151434]
[1729709768780,0.000781,66036.0,66035.0,0.152434]
[1729709769232,0.000781,66036.0,66035.0,0.151434]
[1729709769444,0.22877188,66042.0,66041.0,0.151421]
[1729709769930,0.22877188,66042.0,66041.0,0.251421]
[1729709771338,0.0001,66043.0,66042.0,0.251418]
[1729709772463,0.0001,66043.0,66042.0,0.281788]
[1729709772672,0.0001,66043.0,66042.0,0.251418]
[1729709772888,0.0001,66043.0,66042.0,0.252418]
[1729709773125,0.0001,66043.0,66042.0,0.251418]
[1729709773554,0.0001,66043.0,66042.0,0.252418]
[1729709775364,0.0001,66043.0,66042.0,0.251418]
[1729709775365,0.15060381,66043.0,66042.0,0.251418]
[1729709775607,0.15060381,66043.0,66042.0,0.152418]
[1729709775608,0.18559273,66043.0,66042.0,0.152418]
[1729709776083,0.18559273,66043.0,66041.0,0.302841]
[1729709776084,0.15060381,66043.0,66041.0,0.302841]
[1729709776296,0.15050381,66042.0,66041.0,0.454262]
[1729709777479,0.33760381,66042.0,66035.0,0.302868]
[1729709777702,0.023,66039.0,66020.0,0.00999933]
[1729709777924,0.023,66037.0,66027.0,0.1]
[1729709778143,0.15050381,66036.0,66035.0,0.151432]
[1729709778595,0.15050381,66036.0,66035.0,0.152432]
[1729709778844,0.15050381,66036.0,66035.0,0.151432]
[1729709779268,0.15050381,66036.0,66035.0,0.152432]
[1729709779904,0.15050381,66036.0,66035.0,0.001]
[1729709780150,0.17350381,66036.0,66035.0,0.001]
[1729709781027,0.023,66035.0,66033.0,0.151439]
[1729709781248,0.32678922,66034.0,66033.0,0.151439]
[1729709781455,0.34978922,66034.0,66033.0,0.151439]
[1729709782364,0.34978922,66034.0,66033.0,0.152439]
[1729709782594,0.34978922,66034.0,66033.0,0.001]
[1729709782838,0.50322622,66034.0,66033.0,0.001]
[1729709783052,0.34978922,66034.0,66033.0,0.001]
[1729709783487,0.50122622,66034.0,66033.0,0.001]
[1729709783704,0.50322622,66034.0,66033.0,0.001]
[1729709784205,0.50122622,66034.0,66033.0,0.001]
[1729709784657,0.325883,66033.0,66024.0,0.001642]
[1729709784864,0.023,66029.0,66025.0,0.151457]
[1729709785093,0.023,66027.0,66025.0,0.151457]
[1729709785314,0.033,66025.0,66024.0,0.001642]
[1729709785529,0.18350381,66025.0,66024.0,0.001642]
[1729709785743,0.81409922,66025.0,66024.0,0.001642]
[1729709785976,0.81409922,66025.0,66024.0,0.153102]
[1729709786427,0.81409922,66025.0,66024.0,0.001642]
[1729709786594,0.81409922,66025.0,66024.0,0.153102]
[1729709787635,0.81409922,66025.0,66024.0,0.001642]
[1729709788040,0.81409922,66025.0,66024.0,0.154102]
[1729709788253,0.81409922,66025.0,66024.0,0.153102]
[1729709788471,0.81409922,66025.0,66024.0,0.002642]
[1729709788684,0.81409922,66025.0,66024.0,0.154102]
[1729709789520,0.80909922,66025.0,66024.0,0.154102]
[1729709789730,0.80909922,66025.0,66024.0,0.002642]
[1729709790781,0.80909922,66025.0,66024.0,0.154102]
[1729709791428,0.80909922,66025.0,66024.0,0.002642]
[1729709792099,0.80909922,66025.0,66024.0,0.154102]
[1729709793665,0.80909922,66025.0,66024.0,0.002642]
[1729709794544,0.96055622,66025.0,66024.0,0.002642]
[1729709794763,0.88209843,66025.0,66024.0,0.002642]
[1729709794975,1.03555543,66025.0,66024.0,0.002642]
[1729709795190,1.22975543,66025.0,66024.0,0.002642]
[1729709795401,1.48494084,66025.0,66024.0,0.002642]
[1729709795608,1.4847586,66025.0,66024.0,0.002642]
[1729709795830,1.30847319,66025.0,66024.0,0.002642]
[1729709797183,1.30847319,66025.0,66024.0,0.001642]
[1729709797411,1.15457398,66025.0,66024.0,0.001642]
[1729709797653,1.15457398,66025.0,66024.0,0.154102]
[1729709797654,0.45431,66025.0,66024.0,0.154102]
[1729709797900,0.45431,66025.0,66024.0,0.153102]
[1729709798340,0.45431,66025.0,66024.0,0.154102]
[1729709798572,0.45431,66025.0,66024.0,0.253102]
[1729709798815,0.45431,66025.0,66024.0,0.254102]
[1729709799059,0.45431,66025.0,66024.0,0.253102]
[1729709800453,0.45431,66025.0,66024.0,0.335202]
[1729709801130,0.45431,66025.0,66024.0,0.334202]
[1729709801587,0.455131,66025.0,66024.0,0.335202]
[1729709801834,0.455131,66025.0,66024.0,0.52950133]
[1729709802062,0.455131,66025.0,66024.0,0.53050133]
[1729709803212,0.455131,66025.0,66024.0,0.52950133]
[1729709803423,0.455131,66025.0,66024.0,0.53423861]
[1729709803643,0.455131,66025.0,66024.0,0.53523861]
[1729709803851,0.455131,66025.0,66024.0,0.53423861]
[1729709804280,0.455131,66025.0,66024.0,0.53523861]
[1729709804498,0.455131,66025.0,66024.0,0.53423861]
[1729709804697,0.455131,66025.0,66024.0,0.53523861]
[1729709805780,0.455131,66025.0,66024.0,0.53523859]
[1729709814155,0.455131,66025.0,66024.0,0.34993859]
[1729709815719,0.455131,66025.0,66024.0,0.35493859]
[1729709817117,0.455131,66025.0,66024.0,0.35493827]
[1729709818400,0.455131,66025.0,66024.0,0.53122368]
[1729709820919,0.455131,66025.0,66024.0,0.52622368]
[1729709821119,0.455131,66025.0,66024.0,0.53022368]
[1729709821477,0.455131,66025.0,66024.0,0.53122368]
[1729709822816,0.455131,66025.0,66024.0,0.52622368]
[1729709823170,0.455131,66025.0,66024.0,0.53022368]
[1729709825060,0.464131,66025.0,66024.0,0.52522368]
[1729709827424,0.464131,66025.0,66024.0,0.26783827]
[1729709827626,0.464131,66025.0,66024.0,0.26310133]
[1729709828041,0.464131,66025.0,66024.0,0.26783827]
[1729709828676,0.464131,66025.0,66024.0,0.25783894]
[1729709828889,0.66104791,66025.0,66024.0,0.153102]
[1729709829116,0.66104791,66025.0,66024.0,0.001642]
[1729709829117,0.63763481,66025.0,66024.0,0.001642]
[1729709829342,0.78909181,66025.0,66024.0,0.001642]
[1729709829599,0.97089181,66025.0,66024.0,0.001642]
[1729709830025,0.97589181,66025.0,66024.0,0.001642]
[1729709830436,0.97789181,66025.0,66024.0,0.001642]
[1729709830666,1.12639562,66025.0,66024.0,0.001642]
[1729709830891,1.12839562,66025.0,66024.0,0.001642]
[1729709831125,1.12639562,66025.0,66024.0,0.001642]
[1729709831554,0.97789181,66025.0,66024.0,0.001642]
[1729709832215,0.97589181,66025.0,66024.0,0.001642]
[1729709832429,0.97789181,66025.0,66024.0,0.001642]
[1729709832647,1.05389181,66025.0,66024.0,0.001642]
[1729709832860,1.05889181,66025.0,66024.0,0.001642]
[1729709833071,1.20939562,66025.0,66024.0,0.001642]
[1729709837278,1.20939562,66025.0,66012.0,0.001642]
[1729709837279,0.450085,66013.0,66012.0,0.001642]
[1729709837484,0.60058881,66013.0,66012.0,0.001642]
[1729709837695,1.05489881,66013.0,66012.0,0.001642]
[1729709837905,1.20540262,66013.0,66012.0,0.001642]
[1729709838347,1.20340262,66013.0,66012.0,0.001642]
[1729709838557,1.38168803,66013.0,66012.0,0.001642]
[1729709840101,1.37968803,66013.0,66012.0,0.001642]
[1729709842259,1.05289881,66013.0,66012.0,0.001642]
[1729709842876,1.05489881,66013.0,66012.0,0.001642]
[1729709843290,1.23118422,66013.0,66012.0,0.001642]
[1729709845373,1.22918422,66013.0,66012.0,0.001642]
[1729709845833,1.23118422,66013.0,66012.0,0.001642]
[1729709846070,1.38168803,66013.0,66012.0,0.001642]
[1729709847034,1.61045991,66013.0,66012.0,0.001642]
[1729709847915,1.60545991,66013.0,66012.0,0.001642]
[1729709848600,1.37468803,66013.0,66012.0,0.001642]
[1729709848803,1.37468803,66013.0,66012.0,0.153129]
[1729709848804,0.99059922,66013.0,66012.0,0.153129]
[1729709849004,0.80931381,66013.0,66012.0,0.153129]
[1729709849366,0.81431381,66013.0,66012.0,0.153129]
[1729709850226,0.80931381,66013.0,66012.0,0.153129]
[1729709850432,0.60481381,66013.0,66012.0,0.153129]
[1729709852538,0.60481381,66013.0,66012.0,0.24022833]
[1729709852539,0.45431,66013.0,66012.0,0.24022833]
[1729709852767,0.45431,66013.0,66012.0,0.34022833]
[1729709853424,0.45431,66013.0,66012.0,0.51651374]
[1729709855798,0.45431,66013.0,66012.0,0.50751374]
[1729709856471,0.45431,66013.0,66012.0,0.50251374]
[1729709856677,0.45431,66013.0,66012.0,0.51134485]
[1729709857560,0.45431,66013.0,66012.0,0.50634485]
[1729709857969,0.45431,66013.0,66012.0,0.50134552]
[1729709860217,0.45431,66013.0,66012.0,0.50298752]
[1729709864014,0.45431,66013.0,66012.0,0.32670211]
[1729709866817,0.45431,66013.0,66012.0,0.322871]
[1729709867484,0.45431,66013.0,66012.0,0.353241]
[1729709867738,0.45431,66013.0,66012.0,0.322871]
[1729709869551,0.45431,66013.0,66012.0,0.49915641]
[1729709870547,0.45431,66013.0,66012.0,0.322871]
[1729709871500,0.455133,66013.0,66012.0,0.322871]
[1729709874075,0.455133,66013.0,66012.0,0.245771]
[1729709875991,0.455133,66013.0,66012.0,0.42205641]
[1729709878365,0.455133,66013.0,66012.0,0.42679481]
[1729709878795,0.455133,66013.0,66012.0,0.42205641]
[1729709879023,0.455133,66013.0,66012.0,0.245771]
[1729709881144,0.65115011,66013.0,66012.0,0.145771]
[1729709881373,0.60563681,66013.0,66012.0,0.145771]
[1729709883188,0.79543681,66013.0,66012.0,0.145771]
[1729709886989,0.79543681,66013.0,66012.0,0.153129]
[1729709889917,0.79543681,66013.0,66012.0,0.001642]
[1729709890164,0.93063413,66013.0,66012.0,0.001642]
[1729709890620,1.28140454,66013.0,66012.0,0.001642]
[1729709890849,1.12991954,66013.0,66012.0,0.001642]
[1729709891276,0.95363413,66013.0,66012.0,0.153129]
[1729709891514,0.95363413,66013.0,66012.0,0.001642]
[1729709892056,1.10511913,66013.0,66012.0,0.001642]
[1729709892378,1.28140454,66013.0,66012.0,0.001642]
[1729709893697,1.28140454,66013.0,66012.0,0.153129]
[1729709893698,0.81843681,66013.0,66012.0,0.153129]
[1729709893916,0.81843681,66013.0,66012.0,0.001642]
[1729709894818,0.81843681,66013.0,66012.0,0.153129]
[1729709895038,0.60563681,66013.0,66012.0,0.153129]
[1729709895250,0.455133,66013.0,66012.0,0.153129]
[1729709901290,0.455133,66013.0,66012.0,0.42941441]
[1729709901544,0.455133,66013.0,66012.0,0.71761374]
[1729709901814,0.455133,66013.0,66012.0,0.76232136]
[1729709902037,0.455133,66013.0,66012.0,0.88252686]
[1729709902553,0.455133,66013.0,66012.0,0.97658439]
[1729709903001,0.455133,66013.0,66012.0,0.88724517]
[1729709903213,0.455133,66013.0,66012.0,0.88250743]
[1729709903422,0.455133,66013.0,66012.0,0.94950046]
[1729709903631,0.455133,66013.0,66012.0,0.72235163]
[1729709904077,0.455133,66013.0,66012.0,0.76700822]
[1729709904294,0.394539,66013.0,66012.0,0.87785544]
[1729709904510,0.394539,66013.0,66012.0,0.92251203]
[1729709904734,0.333945,66013.0,66012.0,0.87785544]
[1729709904955,0.243054,66013.0,66012.0,0.92249794]
[1729709905455,0.243054,66013.0,66012.0,0.87785544]
[1729709907011,0.243054,66013.0,66012.0,0.87785526]
[1729709910140,0.243054,66013.0,66012.0,0.72735145]
[1729709910595,0.243054,66013.0,66012.0,0.72735163]
[1729709913020,0.243054,66013.0,66012.0,0.72261374]
[1729709913240,0.243054,66013.0,66012.0,0.253129]
[1729709913464,0.243054,66013.0,66012.0,0.43941374]
[1729709913682,0.243054,66013.0,66012.0,0.51701374]
[1729709916677,0.243054,66013.0,66012.0,0.5217518]
[1729709916932,0.243054,66013.0,66012.0,0.51701374]
[1729709918075,0.243054,66013.0,66012.0,0.52175179]
[1729709918390,0.243054,66013.0,66012.0,0.51701374]
[1729709919032,0.243054,66013.0,66012.0,0.52175186]
[1729709919251,0.243054,66013.0,66012.0,0.51701374]
[1729709920359,0.243054,66013.0,66012.0,0.45357214]
[1729709920806,0.243054,66013.0,66012.0,0.44857214]
[1729709921014,0.243054,66013.0,66012.0,0.37571041]
[1729709921457,0.243054,66013.0,66012.0,0.38071041]
[1729709921673,0.243054,66013.0,66012.0,0.49355418]
[1729709923540,0.24287168,66013.0,66012.0,0.49355418]
[1729709923742,0.24287168,66013.0,66012.0,0.45751037]
[1729709924370,0.24287168,66013.0,66012.0,0.34466656]
[1729709924555,0.24287168,66013.0,66012.0,0.52100693]
[1729709925196,0.24287168,66013.0,66012.0,0.52100691]
[1729709927512,0.21257468,66013.0,66012.0,0.67651072]
[1729709927712,0.21257468,66013.0,66012.0,0.86701072]
[1729709928636,0.21257468,66013.0,66012.0,0.67651072]
[1729709928833,0.21257468,66013.0,66012.0,0.67651066]
[1729709929323,0.21257468,66013.0,66012.0,0.52600685]
[1729709929539,0.21257468,66013.0,66012.0,0.34966648]
[1729709929742,0.21257468,66013.0,66012.0,0.34466648]
[1729709929952,0.21257468,66013.0,66012.0,0.26786648]
[1729709931243,0.21257468,66013.0,66012.0,0.27286648]
[1729709932088,0.21257468,66013.0,66012.0,0.26786648]
[1729709932335,0.21257468,66013.0,66012.0,0.44920685]
[1729709932778,0.21257468,66013.0,66012.0,0.45678799]
[1729709933885,0.21257468,66013.0,66012.0,0.45178799]
[1729709934093,0.21257468,66013.0,66012.0,0.45678799]
[1729709936122,0.21257468,66013.0,66012.0,0.4444687]
[1729709936334,0.21257468,66013.0,66012.0,0.45678797]
[1729709936959,0.21257468,66013.0,66012.0,0.73258797]
[1729709937173,0.17846031,66013.0,66012.0,0.73258797]
[1729709938138,0.17846031,66013.0,66012.0,0.79958574]